[Event "DVM U12w 2024"]
[Site "Bad Homburg"]
[Date "2024.12.27"]
[Round "2"]
[White "Bacakova, Klara"]
[Black "Briese, Sophie"]
[Result "1-0"]
[ECO "B21"]
[WhiteElo "1539"]
[BlackElo "1465"]
[Annotator "NA RC"]
[PlyCount "51"]
[EventDate "2024.12.23"]
[EventType "team-tourn"]
[EventRounds "7"]
[EventCountry "GER"]
[SourceTitle "playchess.com"]
[Source "ChessBase"]
[SourceQuality "1"]
[TimeControl "40/5400+30:1800+30"]

1. e4 {[%emt 0:00:03]} c5 {[%emt 0:00:07]} 2. d4 {[%emt 0:00:06]} cxd4 {[%emt 0:00:04]} 3. c3 {[%emt 0:00:07]} dxc3 {[%emt 0:00:33]} 4. Nxc3 {[%emt 0:00:14]} a6 {[%emt 0:01:13]} 5. Bc4 {[%emt 0:00:24]} e6 {[%emt 0:01:40]} 6. Nf3 {[%emt 0:02:22]} Nc6 {[%emt 0:00:46]} 7. O-O {[%emt 0:01:00]} d6 {[%emt 0:00:42]} 8. Qe2 {[%emt 0:01:34]} Be7 {[%emt 0:00:43]} 9. Rd1 {[%emt 0:00:38]} Bd7 {[%emt 0:00:20]} 10. Bf4 {[%emt 0:21:45]} e5 {[%emt 0:00:22]} 11. Be3 {[%emt 0:01:06]} Nf6 {[%emt 0:00:40]} 12. h3 {[%emt 0:00:56]} O-O {[%emt 0:00:55]} 13. Rac1 {[%emt 0:00:22]} Rc8 {[%emt 0:00:36]} 14. a3 {[%emt 0:10:01]} Be6 {[%emt 0:09:37]} 15. Bxe6 {[%emt 0:01:21]} fxe6 {[%emt 0:00:07]} 16. Ng5 {[%emt 0:00:30]} Qd7 {[%emt 0:01:04]} 17. Na4 {[%emt 0:08:44]} Bd8 {[%emt 0:01:15]} 18. Nc5 {[%emt 0:01:14]} Nd4 {[%emt 0:02:28]} 19. Bxd4 {[%emt 0:00:48]} dxc5 {[%emt 0:01:30]} 20. Bxc5 {[%emt 0:00:58]} Qe8 {[%emt 0:02:40]} 21. Bxf8 {[%emt 0:00:14]} Rxc1 {[%emt 0:00:14]} 22. Rxc1 {[%emt 0:00:26]} Kxf8 {[%emt 0:00:39]} 23. Qc4 {[%emt 0:00:45]} h6 {[%emt 0:06:51]} 24. Nxe6+ {[%emt 0:00:59]} Ke7 {[%emt 0:00:29]} 25. Nxg7 {[%emt 0:01:57]} Qd7 {[%emt 0:03:38]} 26. Nf5+ {[%emt 0:00:52]} 1-0

[Event "DVM U12w 2024"]
[Site "Bad Homburg"]
[Date "2024.12.27"]
[Round "2"]
[White "Feldhaus, Lena"]
[Black "Xu, Dorothea Sicheng"]
[Result "0-1"]
[ECO "D00"]
[WhiteElo "1539"]
[BlackElo "1585"]
[Annotator "NA RC"]
[PlyCount "61"]
[EventDate "2024.12.23"]
[EventType "team-tourn"]
[EventRounds "7"]
[EventCountry "GER"]
[SourceTitle "playchess.com"]
[Source "ChessBase"]
[SourceQuality "1"]
[TimeControl "40/5400+30:1800+30"]

1. d4 {[%emt 0:00:03]} d5 {[%emt 0:00:12]} 2. Nc3 {[%emt 0:00:10]} Nf6 {[%emt 0:00:26]} 3. Bf4 {[%emt 0:00:17]} c6 {[%emt 0:00:48]} 4. Qd2 {[%emt 0:02:20]} Bf5 {[%emt 0:02:38]} 5. O-O-O {[%emt 0:04:08]} e6 {[%emt 0:01:23]} 6. f3 {[%emt 0:02:06]} Bd6 {[%emt 0:03:40]} 7. g4 {[%emt 0:02:04]} Bg6 {[%emt 0:02:46]} 8. h4 {[%emt 0:01:17]} h6 {[%emt 0:02:11]} 9. e3 {[%emt 0:08:21]} c5 {[%emt 0:12:03]} 10. Nb5 {[%emt 0:03:38]} Bxf4 {[%emt 0:02:01]} 11. exf4 {[%emt 0:00:40]} Qe7 {[%emt 0:10:36]} 12. g5 {[%emt 0:02:11]} hxg5 {[%emt 0:01:17]} 13. fxg5 {[%emt 0:00:46]} Nh5 {[%emt 0:01:55]} 14. Bd3 {[%emt 0:09:31]} Bxd3 {[%emt 0:02:34]} 15. Qxd3 {[%emt 0:00:28]} Ng3 {[%emt 0:00:28]} 16. Rh2 {[%emt 0:01:12]} Nf5 {[%emt 0:03:28]} 17. Ne2 {[%emt 0:02:29]} Rxh4 {[%emt 0:02:56]} 18. Rxh4 {[%emt 0:00:33]} Nxh4 {[%emt 0:00:35]} 19. Rh1 {[%emt 0:01:08]} Ng6 {[%emt 0:02:18]} 20. Rh7 {[%emt 0:01:25]} Qxg5+ {[%emt 0:02:19]} 21. Qd2 {[%emt 0:01:22]} Qe7 {[%emt 0:03:10]} 22. Rxg7 {[%emt 0:00:27]} a6 {[%emt 0:03:02]} 23. Rg8+ {[%emt 0:02:01]} Nf8 {[%emt 0:02:12]} 24. Nbc3 {[%emt 0:01:26]} Nc6 {[%emt 0:02:33]} 25. Qe3 {[%emt 0:02:26]} Rd8 {[%emt 0:02:08]} 26. dxc5 {[%emt 0:04:50]} d4 {[%emt 0:01:35]} 27. Nxd4 {[%emt 0:00:58]} Nxd4 {[%emt 0:01:17]} 28. Qe4 {[%emt 0:01:20]} Qxc5 {[%emt 0:02:53]} 29. Qxb7 {[%emt 0:00:42]} Qc6 {[%emt 0:00:48]} 30. Qb4 {[%emt 0:01:03]} Qd6 {[%emt 0:00:47]} 31. Qa4+ {[%emt 0:01:56]} 0-1

[Event "DVM U12w 2024"]
[Site "Bad Homburg"]
[Date "2024.12.27"]
[Round "2"]
[White "Huang, Jasmin Shuya"]
[Black "Andreeva, Katharina"]
[Result "1-0"]
[WhiteElo "1523"]
[BlackElo "1164"]
[Annotator "NA RC"]
[PlyCount "20"]
[EventDate "2024.12.23"]
[EventType "team-tourn"]
[EventRounds "7"]
[EventCountry "GER"]
[SourceTitle "playchess.com"]
[Source "ChessBase"]
[SourceQuality "1"]
[TimeControl "40/5400+30:1800+30"]

1. e4 {[%emt 0:00:01]} c5 {[%emt 0:00:05]} 2. Nf3 {[%emt 0:00:05]} d6 {[%emt 0:00:13]} 3. d4 {[%emt 0:00:18]} cxd4 {[%emt 0:00:08]} 4. Qxd4 {[%emt 0:00:02]} Nc6 {[%emt 0:00:12]} 5. Bb5 {[%emt 0:00:10]} Bd7 {[%emt 0:00:29]} 6. Bxc6 {[%emt 0:00:05]} Bxc6 {[%emt 0:00:16]} 7. Nc3 {[%emt 0:00:07]} Nf6 {[%emt 0:00:32]} 8. Bg5 {[%emt 0:00:16]} a6 {[%emt 0:01:10]} 9. O-O-O {[%emt 0:04:35]} Rc8 {[%emt 0:04:22]} 10. Rhe1 {[%emt 0:07:26]} b5 {[%emt 0:03:31]} 1-0

[Event "DVM U12w 2024"]
[Site "Bad Homburg"]
[Date "2024.12.27"]
[Round "2"]
[White "Wolf, Aurelia"]
[Black "Gelbach, Julietta"]
[Result "1-0"]
[ECO "C55"]
[WhiteElo "1471"]
[BlackElo "855"]
[Annotator "NA RC"]
[PlyCount "73"]
[EventDate "2024.12.23"]
[EventType "team-tourn"]
[EventRounds "7"]
[EventCountry "GER"]
[SourceTitle "playchess.com"]
[Source "ChessBase"]
[SourceQuality "1"]
[TimeControl "40/5400+30:1800+30"]

1. e4 {[%emt 0:00:02]} e5 {[%emt 0:00:07]} 2. Nf3 {[%emt 0:00:05]} Nc6 {[%emt 0:00:08]} 3. Bc4 {[%emt 0:00:04]} Nf6 {[%emt 0:00:21]} 4. d3 {[%emt 0:00:09]} h6 {[%emt 0:00:17]} 5. c3 {[%emt 0:00:21]} d6 {[%emt 0:00:49]} 6. h3 {[%emt 0:00:12]} Be6 {[%emt 0:00:29]} 7. Bb3 {[%emt 0:00:07]} d5 {[%emt 0:01:01]} 8. exd5 {[%emt 0:02:15]} Nxd5 {[%emt 0:00:46]} 9. O-O {[%emt 0:00:21]} Bc5 {[%emt 0:00:46]} 10. Re1 {[%emt 0:00:26]} Qf6 {[%emt 0:00:33]} 11. d4 {[%emt 0:01:18]} exd4 {[%emt 0:01:36]} 12. Bxd5 {[%emt 0:00:12]} O-O-O {[%emt 0:01:50]} 13. Bxe6+ {[%emt 0:01:52]} fxe6 {[%emt 0:00:19]} 14. Qb3 {[%emt 0:00:17]} Rhe8 {[%emt 0:00:39]} 15. Nbd2 {[%emt 0:05:36]} dxc3 {[%emt 0:00:54]} 16. Ne4 {[%emt 0:00:29]} Qe7 {[%emt 0:00:58]} 17. Nxc3 {[%emt 0:01:26]} g5 {[%emt 0:01:14]} 18. Be3 {[%emt 0:02:02]} Bxe3 {[%emt 0:01:03]} 19. Rxe3 {[%emt 0:00:13]} h5 {[%emt 0:00:27]} 20. g4 {[%emt 0:02:08]} hxg4 {[%emt 0:02:02]} 21. hxg4 {[%emt 0:00:09]} Na5 {[%emt 0:02:08]} 22. Qb5 {[%emt 0:01:12]} Nc6 {[%emt 0:01:22]} 23. Nxg5 {[%emt 0:01:21]} Nd4 {[%emt 0:03:32]} 24. Qe5 {[%emt 0:10:32]} Nc2 {[%emt 0:01:31]} 25. Rae1 {[%emt 0:01:37]} Nxe3 {[%emt 0:00:25]} 26. Qxe3 {[%emt 0:01:00]} e5 {[%emt 0:02:10]} 27. Nf3 {[%emt 0:00:39]} Qh7 {[%emt 0:01:22]} 28. Qxa7 {[%emt 0:02:08]} Rh8 {[%emt 0:01:21]} 29. Kf1 {[%emt 0:01:50]} Qh1+ {[%emt 0:00:18]} 30. Ke2 {[%emt 0:00:07]} Qh6 {[%emt 0:01:54]} 31. Qa8+ {[%emt 0:01:11]} Kd7 {[%emt 0:00:15]} 32. Rd1+ {[%emt 0:01:32]} Ke7 {[%emt 0:01:09]} 33. Rxd8 {[%emt 0:00:26]} Rxd8 {[%emt 0:00:13]} 34. Qxb7 {[%emt 0:00:12]} Qg6 {[%emt 0:00:51]} 35. Qxc7+ {[%emt 0:00:52]} Rd7 {[%emt 0:00:28]} 36. Qxd7+ {[%emt 0:00:09]} Kxd7 {[%emt 0:01:39]} 37. Nxe5+ {[%emt 0:00:07]} 1-0

[Event "DVM U12w 2024"]
[Site "Bad Homburg"]
[Date "2024.12.27"]
[Round "2"]
[White "Winkler, Anni"]
[Black "Bykov, Sophia"]
[Result "1-0"]
[ECO "C58"]
[WhiteElo "1404"]
[BlackElo "1033"]
[Annotator "NA RC"]
[PlyCount "93"]
[EventDate "2024.12.23"]
[EventType "team-tourn"]
[EventRounds "7"]
[EventCountry "GER"]
[SourceTitle "playchess.com"]
[Source "ChessBase"]
[SourceQuality "1"]
[TimeControl "40/5400+30:1800+30"]

1. e4 {[%emt 0:01:05]} e5 {[%emt 0:00:05]} 2. Nf3 {[%emt 0:00:29]} Nc6 {[%emt 0:00:06]} 3. Bc4 {[%emt 0:00:31]} Nf6 {[%emt 0:00:28]} 4. Ng5 {[%emt 0:00:29]} d5 {[%emt 0:00:10]} 5. exd5 {[%emt 0:00:08]} Na5 {[%emt 0:00:04]} 6. Bb5+ {[%emt 0:01:53]} Bd7 {[%emt 0:00:16]} 7. Bxd7+ {[%emt 0:00:47]} Qxd7 {[%emt 0:01:15]} 8. O-O {[%emt 0:01:47]} Nxd5 {[%emt 0:00:57]} 9. d4 {[%emt 0:01:53]} O-O-O {[%emt 0:06:52]} 10. dxe5 {[%emt 0:01:38]} f6 {[%emt 0:00:35]} 11. exf6 {[%emt 0:00:18]} gxf6 {[%emt 0:00:21]} 12. Nf3 {[%emt 0:00:50]} Rg8 {[%emt 0:00:50]} 13. g3 {[%emt 0:02:07]} f5 {[%emt 0:04:52]} 14. Re1 {[%emt 0:01:36]} f4 {[%emt 0:01:35]} 15. Ne5 {[%emt 0:03:41]} Qh3 {[%emt 0:04:08]} 16. Qf3 {[%emt 0:01:59]} fxg3 {[%emt 0:05:41]} 17. fxg3 {[%emt 0:00:28]} Bc5+ {[%emt 0:01:18]} 18. Kh1 {[%emt 0:02:40]} Rdf8 {[%emt 0:04:17]} 19. Qg2 {[%emt 0:01:42]} Qh5 {[%emt 0:01:12]} 20. Qxd5 {[%emt 0:04:58]} Rf2 {[%emt 0:00:54]} 21. Qxg8+ {[%emt 0:00:32]} Bf8 {[%emt 0:00:35]} 22. Qg4+ {[%emt 0:00:17]} Qf5 {[%emt 0:04:13]} 23. Qxf5+ {[%emt 0:00:25]} Rxf5 {[%emt 0:00:08]} 24. Nc3 {[%emt 0:00:35]} h5 {[%emt 0:07:27]} 25. g4 {[%emt 0:01:29]} hxg4 {[%emt 0:01:33]} 26. Nxg4 {[%emt 0:00:08]} Nc4 {[%emt 0:00:28]} 27. Ne3 {[%emt 0:00:36]} Nxe3 {[%emt 0:00:56]} 28. Bxe3 {[%emt 0:00:08]} Kd7 {[%emt 0:01:47]} 29. Rad1+ {[%emt 0:00:44]} Ke6 {[%emt 0:00:11]} 30. Bxa7+ {[%emt 0:00:23]} Kf6 {[%emt 0:00:32]} 31. Bd4+ {[%emt 0:00:13]} Kg5 {[%emt 0:00:08]} 32. Re5 {[%emt 0:00:16]} Rxe5 {[%emt 0:01:52]} 33. Bxe5 {[%emt 0:00:07]} c5 {[%emt 0:00:43]} 34. Rg1+ {[%emt 0:00:22]} Kf5 {[%emt 0:00:11]} 35. Rf1+ {[%emt 0:00:27]} Kxe5 {[%emt 0:00:53]} 36. Rxf8 {[%emt 0:00:05]} Kd4 {[%emt 0:00:24]} 37. h4 {[%emt 0:00:21]} Kc4 {[%emt 0:00:45]} 38. h5 {[%emt 0:00:07]} b5 {[%emt 0:00:45]} 39. Nxb5 {[%emt 0:00:41]} Kxb5 {[%emt 0:00:33]} 40. h6 {[%emt 0:00:03]} c4 {[%emt 0:00:27]} 41. h7 {[%emt 0:30:08]} Kb4 {[%emt 0:30:26]} 42. h8=Q {[%emt 0:00:12]} Kc5 {[%emt 0:00:28]} 43. Qe5+ {[%emt 0:00:14]} Kc6 {[%emt 0:00:29]} 44. Rf6+ {[%emt 0:00:10]} Kd7 {[%emt 0:00:21]} 45. Qg5 {[%emt 0:00:11]} c3 {[%emt 0:00:42]} 46. Qg7+ {[%emt 0:00:08]} Kd8 {[%emt 0:00:35]} 47. Rf8# {[%emt 0:00:35]} 1-0

[Event "DVM U12w 2024"]
[Site "Bad Homburg"]
[Date "2024.12.27"]
[Round "2"]
[White "Ulianova, Anna"]
[Black "Didas, Emma"]
[Result "0-1"]
[ECO "B07"]
[WhiteElo "1267"]
[BlackElo "1456"]
[Annotator "NA RC"]
[PlyCount "48"]
[EventDate "2024.12.23"]
[EventType "team-tourn"]
[EventRounds "7"]
[EventCountry "GER"]
[SourceTitle "playchess.com"]
[Source "ChessBase"]
[SourceQuality "1"]
[TimeControl "40/5400+30:1800+30"]

1. e4 {[%emt 0:00:02]} d6 {[%emt 0:00:07]} 2. d4 {[%emt 0:00:05]} Nf6 {[%emt 0:00:07]} 3. Nc3 {[%emt 0:00:08]} g6 {[%emt 0:00:08]} 4. Be3 {[%emt 0:00:11]} Bg7 {[%emt 0:00:17]} 5. f3 {[%emt 0:00:23]} c6 {[%emt 0:00:26]} 6. Qd2 {[%emt 0:00:52]} b5 {[%emt 0:00:49]} 7. a3 {[%emt 0:00:40]} Nbd7 {[%emt 0:01:06]} 8. Bh6 {[%emt 0:00:33]} O-O {[%emt 0:01:11]} 9. h4 {[%emt 0:00:35]} e5 {[%emt 0:01:59]} 10. d5 {[%emt 0:00:22]} cxd5 {[%emt 0:01:29]} 11. exd5 {[%emt 0:00:17]} a6 {[%emt 0:00:32]} 12. g4 {[%emt 0:02:51]} Nb6 {[%emt 0:03:02]} 13. h5 {[%emt 0:00:57]} e4 {[%emt 0:02:50]} 14. hxg6 {[%emt 0:00:52]} e3 {[%emt 0:02:16]} 15. Qd3 {[%emt 0:08:46]} fxg6 {[%emt 0:01:38]} 16. O-O-O {[%emt 0:04:42]} Bxh6 {[%emt 0:03:46]} 17. Rxh6 {[%emt 0:00:39]} Nfxd5 {[%emt 0:01:39]} 18. Nxd5 {[%emt 0:00:43]} Qg5 {[%emt 0:00:13]} 19. Kb1 {[%emt 0:11:52]} Qxh6 {[%emt 0:02:07]} 20. Nxb6 {[%emt 0:00:11]} Ra7 {[%emt 0:00:51]} 21. Nxc8 {[%emt 0:01:36]} Rxc8 {[%emt 0:00:10]} 22. Qd5+ {[%emt 0:00:19]} Rf7 {[%emt 0:01:19]} 23. Qxd6 {[%emt 0:00:56]} Qh2 {[%emt 0:01:25]} 24. Bd3 {[%emt 0:01:46]} Qxd6 {[%emt 0:00:36]} 0-1

[Event "DVM U12w 2024"]
[Site "Bad Homburg"]
[Date "2024.12.27"]
[Round "2"]
[White "Ising, Svea"]
[Black "Glotz, Katharina"]
[Result "0-1"]
[ECO "B21"]
[WhiteElo "1221"]
[BlackElo "1656"]
[Annotator "NA RC"]
[PlyCount "89"]
[EventDate "2024.12.23"]
[EventType "team-tourn"]
[EventRounds "7"]
[EventCountry "GER"]
[SourceTitle "playchess.com"]
[Source "ChessBase"]
[SourceQuality "1"]
[TimeControl "40/5400+30:1800+30"]

1. e4 {[%emt 0:00:02]} c5 {[%emt 0:00:10]} 2. d4 {[%emt 0:00:06]} cxd4 {[%emt 0:00:38]} 3. c3 {[%emt 0:00:11]} g6 {[%emt 0:19:28]} 4. Nf3 {[%emt 0:00:23]} dxc3 {[%emt 0:11:52]} 5. Nxc3 {[%emt 0:00:13]} Bg7 {[%emt 0:00:09]} 6. Bc4 {[%emt 0:00:28]} Nf6 {[%emt 0:01:23]} 7. O-O {[%emt 0:00:34]} O-O {[%emt 0:02:19]} 8. Qe2 {[%emt 0:02:04]} d6 {[%emt 0:01:58]} 9. Rd1 {[%emt 0:02:20]} Bd7 {[%emt 0:04:50]} 10. Be3 {[%emt 0:04:07]} Nc6 {[%emt 0:01:03]} 11. Qd2 {[%emt 0:02:21]} Bg4 {[%emt 0:05:08]} 12. Be2 {[%emt 0:03:45]} Rc8 {[%emt 0:03:42]} 13. Bh6 {[%emt 0:02:07]} Rc7 {[%emt 0:03:40]} 14. Bxg7 {[%emt 0:00:29]} Kxg7 {[%emt 0:00:13]} 15. h3 {[%emt 0:01:44]} Be6 {[%emt 0:00:43]} 16. Qe3 {[%emt 0:01:59]} Qc8 {[%emt 0:02:00]} 17. Rac1 {[%emt 0:00:55]} Rd8 {[%emt 0:02:05]} 18. Ng5 {[%emt 0:01:14]} a6 {[%emt 0:07:46]} 19. Nxe6+ {[%emt 0:01:02]} Qxe6 {[%emt 0:00:22]} 20. Nd5 {[%emt 0:02:00]} Rcc8 {[%emt 0:01:48]} 21. Bc4 {[%emt 0:05:52]} Qxe4 {[%emt 0:03:33]} 22. Re1 {[%emt 0:02:21]} Qxe3 {[%emt 0:00:38]} 23. fxe3 {[%emt 0:00:43]} Nxd5 {[%emt 0:00:48]} 24. Bxd5 {[%emt 0:00:09]} Rd7 {[%emt 0:00:40]} 25. Rf1 {[%emt 0:01:04]} e6 {[%emt 0:01:25]} 26. Bb3 {[%emt 0:00:39]} Rdc7 {[%emt 0:00:34]} 27. Rcd1 {[%emt 0:00:38]} d5 {[%emt 0:00:23]} 28. Rf2 {[%emt 0:01:09]} Na5 {[%emt 0:00:25]} 29. Rd3 {[%emt 0:00:34]} Nxb3 {[%emt 0:00:55]} 30. Rxb3 {[%emt 0:00:07]} b5 {[%emt 0:00:14]} 31. Kh2 {[%emt 0:00:25]} Rc2 {[%emt 0:00:41]} 32. Rf1 {[%emt 0:01:30]} Re2 {[%emt 0:01:08]} 33. Kg3 {[%emt 0:01:05]} Rcc2 {[%emt 0:00:20]} 34. Rb1 {[%emt 0:00:37]} Rxg2+ {[%emt 0:00:10]} 35. Kf4 {[%emt 0:00:27]} Rc4+ {[%emt 0:02:08]} 36. Ke5 {[%emt 0:00:19]} Re4+ {[%emt 0:00:21]} 37. Kd6 {[%emt 0:00:17]} Re2 {[%emt 0:00:31]} 38. Ra3 {[%emt 0:00:41]} R2xe3 {[%emt 0:01:17]} 39. Rxa6 {[%emt 0:00:19]} d4 {[%emt 0:00:36]} 40. Rf1 {[%emt 0:00:32]} Re5 {[%emt 0:00:54]} 41. Ra7 {[%emt 0:30:43]} Rf5 {[%emt 0:30:09]} 42. Rd1 {[%emt 0:00:16]} d3 {[%emt 0:00:49]} 43. Ra3 {[%emt 0:00:24]} Rd5+ {[%emt 0:00:12]} 44. Kc6 {[%emt 0:00:15]} Rxh3 {[%emt 0:00:25]} 45. Rc3 {[%emt 0:00:41]} 0-1

[Event "DVM U12w 2024"]
[Site "Bad Homburg"]
[Date "2024.12.27"]
[Round "2"]
[White "Reuber, Ella"]
[Black "Ruddat, Maila"]
[Result "1/2-1/2"]
[ECO "D37"]
[WhiteElo "1188"]
[BlackElo "1486"]
[Annotator "NA RC"]
[PlyCount "102"]
[EventDate "2024.12.23"]
[EventType "team-tourn"]
[EventRounds "7"]
[EventCountry "GER"]
[SourceTitle "playchess.com"]
[Source "ChessBase"]
[SourceQuality "1"]
[TimeControl "40/5400+30:1800+30"]

1. d4 {[%emt 0:00:02]} d5 {[%emt 0:00:37]} 2. c4 {[%emt 0:00:04]} c6 {[%emt 0:00:32]} 3. Nf3 {[%emt 0:00:18]} Nf6 {[%emt 0:00:22]} 4. Bf4 {[%emt 0:00:36]} e6 {[%emt 0:01:31]} 5. Nc3 {[%emt 0:00:56]} Nbd7 {[%emt 0:03:32]} 6. e3 {[%emt 0:00:52]} Qb6 {[%emt 0:03:29]} 7. Rb1 {[%emt 0:01:48]} Be7 {[%emt 0:05:18]} 8. Bd3 {[%emt 0:00:57]} O-O {[%emt 0:05:13]} 9. O-O {[%emt 0:01:25]} Qd8 {[%emt 0:06:13]} 10. b4 {[%emt 0:02:43]} dxc4 {[%emt 0:03:51]} 11. Bxc4 {[%emt 0:00:58]} Nb6 {[%emt 0:00:30]} 12. Bd3 {[%emt 0:01:12]} Nbd5 {[%emt 0:00:28]} 13. Nxd5 {[%emt 0:00:23]} Nxd5 {[%emt 0:00:11]} 14. a3 {[%emt 0:01:21]} Nc3 {[%emt 0:00:25]} 15. Qc2 {[%emt 0:00:33]} Nxb1 {[%emt 0:00:08]} 16. Rxb1 {[%emt 0:00:25]} h6 {[%emt 0:00:50]} 17. h3 {[%emt 0:02:35]} a5 {[%emt 0:01:54]} 18. Qe2 {[%emt 0:03:37]} axb4 {[%emt 0:01:12]} 19. axb4 {[%emt 0:00:09]} Qb6 {[%emt 0:01:20]} 20. b5 {[%emt 0:01:24]} Qa7 {[%emt 0:02:52]} 21. Bc2 {[%emt 0:01:57]} Bd7 {[%emt 0:02:53]} 22. Qd3 {[%emt 0:00:24]} f5 {[%emt 0:02:17]} 23. e4 {[%emt 0:01:29]} cxb5 {[%emt 0:02:37]} 24. exf5 {[%emt 0:00:26]} exf5 {[%emt 0:00:37]} 25. Ne5 {[%emt 0:01:11]} b6 {[%emt 0:01:23]} 26. Bb3+ {[%emt 0:00:11]} Kh7 {[%emt 0:01:29]} 27. Qg3 {[%emt 0:01:30]} g5 {[%emt 0:01:48]} 28. Bd2 {[%emt 0:00:30]} f4 {[%emt 0:03:01]} 29. Bc2+ {[%emt 0:00:51]} Kg7 {[%emt 0:01:17]} 30. Qf3 {[%emt 0:01:01]} Bd6 {[%emt 0:02:13]} 31. Qh5 {[%emt 0:00:27]} Rf6 {[%emt 0:00:40]} 32. h4 {[%emt 0:01:17]} Be8 {[%emt 0:01:35]} 33. Qg4 {[%emt 0:00:43]} Bg6 {[%emt 0:10:48]} 34. Nxg6 {[%emt 0:00:31]} Qa2 {[%emt 0:02:32]} 35. Qd7+ {[%emt 0:03:27]} Rf7 {[%emt 0:00:33]} 36. Qxb5 {[%emt 0:00:51]} Qxc2 {[%emt 0:00:52]} 37. Ne5 {[%emt 0:00:46]} Bxe5 {[%emt 0:01:19]} 38. Qxe5+ {[%emt 0:00:06]} Kg8 {[%emt 0:00:43]} 39. Qe1 {[%emt 0:00:31]} gxh4 {[%emt 0:01:32]} 40. Rxb6 {[%emt 0:00:47]} Rfa7 {[%emt 0:02:02]} 41. Qe6+ {[%emt 0:30:29]} Rf7 {[%emt 0:30:31]} 42. Qg6+ {[%emt 0:00:16]} Qxg6 {[%emt 0:00:34]} 43. Rxg6+ {[%emt 0:00:07]} Rg7 {[%emt 0:01:00]} 44. Rxh6 {[%emt 0:00:23]} f3 {[%emt 0:00:14]} 45. Rxh4 {[%emt 0:00:44]} fxg2 {[%emt 0:02:00]} 46. Re4 {[%emt 0:00:49]} Ra6 {[%emt 0:01:24]} 47. d5 {[%emt 0:01:02]} Ra3 {[%emt 0:00:26]} 48. Re3 {[%emt 0:00:26]} Rxe3 {[%emt 0:00:44]} 49. Bxe3 {[%emt 0:00:19]} Kf7 {[%emt 0:00:13]} 50. Bf4 {[%emt 0:00:10]} Ke7 {[%emt 0:00:18]} 51. Bg3 {[%emt 0:00:13]} Rxg3 {[%emt 0:00:33]} 1/2-1/2

[Event "DVM U12w 2024"]
[Site "Bad Homburg"]
[Date "2024.12.27"]
[Round "2"]
[White "Kotliarova, Emily"]
[Black "Daaboul, Ulla"]
[Result "1-0"]
[ECO "B31"]
[WhiteElo "1139"]
[BlackElo "787"]
[Annotator "NA RC"]
[PlyCount "32"]
[EventDate "2024.12.23"]
[EventType "team-tourn"]
[EventRounds "7"]
[EventCountry "GER"]
[SourceTitle "playchess.com"]
[Source "ChessBase"]
[SourceQuality "1"]
[TimeControl "40/5400+30:1800+30"]

1. e4 {[%emt 0:00:01]} c5 {[%emt 0:00:05]} 2. Nf3 {[%emt 0:00:05]} Nc6 {[%emt 0:00:04]} 3. Bb5 {[%emt 0:00:07]} d6 {[%emt 0:00:15]} 4. Bxc6+ {[%emt 0:00:08]} bxc6 {[%emt 0:00:08]} 5. O-O {[%emt 0:00:37]} g6 {[%emt 0:00:04]} 6. Re1 {[%emt 0:01:00]} Bg7 {[%emt 0:00:11]} 7. e5 {[%emt 0:01:17]} Bg4 {[%emt 0:01:04]} 8. exd6 {[%emt 0:02:57]} Qxd6 {[%emt 0:00:10]} 9. h3 {[%emt 0:02:34]} Bh5 {[%emt 0:00:27]} 10. g4 {[%emt 0:00:37]} Bxg4 {[%emt 0:00:27]} 11. hxg4 {[%emt 0:00:13]} Nf6 {[%emt 0:00:17]} 12. Nh2 {[%emt 0:03:19]} Qd4 {[%emt 0:00:23]} 13. d3 {[%emt 0:01:56]} O-O {[%emt 0:00:17]} 14. Nc3 {[%emt 0:01:20]} Rad8 {[%emt 0:00:19]} 15. Be3 {[%emt 0:01:45]} Qb4 {[%emt 0:00:28]} 16. Rb1 {[%emt 0:00:59]} Nd5 {[%emt 0:00:37]} 1-0

[Event "DVM U12w 2024"]
[Site "Bad Homburg"]
[Date "2024.12.27"]
[Round "2"]
[White "Weißleder, Emia"]
[Black "Helbig, Frieda"]
[Result "0-1"]
[ECO "D00"]
[WhiteElo "1118"]
[BlackElo "1443"]
[Annotator "NA"]
[PlyCount "82"]
[EventDate "2024.12.23"]
[EventType "team-tourn"]
[EventRounds "7"]
[EventCountry "GER"]
[SourceTitle "playchess.com"]
[Source "ChessBase"]
[SourceQuality "1"]
[TimeControl "40/5400+30:1800+30"]

1. d4 {[%emt 0:00:04]} d5 {[%emt 0:00:06]} 2. Nc3 {[%emt 0:00:06]} Nf6 {[%emt 0:00:07]} 3. Bf4 {[%emt 0:00:08]} a6 {[%emt 0:00:09]} 4. f3 {[%emt 0:00:23]} c5 {[%emt 0:00:09]} 5. e3 {[%emt 0:00:48]} Nc6 {[%emt 0:00:28]} 6. g4 {[%emt 0:00:33]} e6 {[%emt 0:00:25]} 7. h4 {[%emt 0:00:38]} Nd7 {[%emt 0:00:16]} 8. Qd2 {[%emt 0:00:58]} cxd4 {[%emt 0:02:21]} 9. exd4 {[%emt 0:00:24]} Nb6 {[%emt 0:00:52]} 10. O-O-O {[%emt 0:00:45]} Bb4 {[%emt 0:02:10]} 11. a3 {[%emt 0:01:02]} Bd6 {[%emt 0:01:01]} 12. Bxd6 {[%emt 0:01:35]} Qxd6 {[%emt 0:00:26]} 13. Qg5 {[%emt 0:00:55]} Rg8 {[%emt 0:11:48]} 14. Bd3 {[%emt 0:00:42]} f6 {[%emt 0:00:43]} 15. Qe3 {[%emt 0:00:44]} Bd7 {[%emt 0:02:20]} 16. Bxh7 {[%emt 0:02:15]} Rf8 {[%emt 0:01:27]} 17. Bg6+ {[%emt 0:00:40]} Kd8 {[%emt 0:00:42]} 18. Nh3 {[%emt 0:00:42]} Kc7 {[%emt 0:00:13]} 19. Bd3 {[%emt 0:01:59]} Rac8 {[%emt 0:00:17]} 20. Bb5 {[%emt 0:00:52]} Kb8 {[%emt 0:00:27]} 21. Bxc6 {[%emt 0:01:54]} Bxc6 {[%emt 0:00:16]} 22. Qf4 {[%emt 0:00:46]} e5 {[%emt 0:00:38]} 23. Qe3 {[%emt 0:01:29]} Bb5 {[%emt 0:00:58]} 24. Nxb5 {[%emt 0:00:36]} axb5 {[%emt 0:00:20]} 25. Qb3 {[%emt 0:00:48]} Qc6 {[%emt 0:01:12]} 26. Rd3 {[%emt 0:01:08]} exd4 {[%emt 0:01:37]} 27. Rxd4 {[%emt 0:00:26]} Rfe8 {[%emt 0:00:41]} 28. Rhd1 {[%emt 0:00:31]} Nc4 {[%emt 0:00:50]} 29. Rxd5 {[%emt 0:00:56]} Ne3 {[%emt 0:00:56]} 30. R5d2 {[%emt 0:01:39]} Nxd1 {[%emt 0:00:15]} 31. Rxd1 {[%emt 0:00:47]} Re3 {[%emt 0:01:01]} 32. Rd3 {[%emt 0:00:51]} Re1+ {[%emt 0:00:42]} 33. Kd2 {[%emt 0:00:46]} Rh1 {[%emt 0:00:57]} 34. Nf2 {[%emt 0:00:32]} Rh2 {[%emt 0:00:17]} 35. Ke1 {[%emt 0:00:59]} Re8+ {[%emt 0:00:14]} 36. Kf1 {[%emt 0:01:12]} Qc5 {[%emt 0:03:31]} 37. Rd2 {[%emt 0:01:48]} Rxh4 {[%emt 0:01:17]} 38. Rd5 {[%emt 0:01:48]} Qb6 {[%emt 0:01:15]} 39. Rxb5 {[%emt 0:00:40]} Qc7 {[%emt 0:00:51]} 40. Nd3 {[%emt 0:00:47]} Rh1+ {[%emt 0:00:47]} 41. Kf2 {[%emt 0:30:34]} Qh2# {[%emt 0:30:20]} 0-1